Workbook

Sheet Cover
B3: Excel in Perfektion
B6: Kapitel | C6: 8
B7: Thema | C7: Berechnungen durchführen
B9: Inhalt | C9: Pressverbindung
B14: Autor | C14: Harald Nahrstedt
B15: Datum | C15: 2017-03-01
B16: Version | C16: 2.0
B19: Springer Vieweg Verlag

Sheet Pressverband
B3: Maße
B4: di | D4: 100 | E4: mm
B5: da | D5: 200 | E5: mm
B6: l | D6: 250 | E6: mm
B8: Zulässige Festigkeiten
B9: σ zul,i | D9: 480 | E9: N/mm²
B10: σ zul,a | D10: 630 | E10: N/mm²
B11: Haftbeiwert ν | D11: 0.3
B13: Auswertung
B14: c | D14: =Zul_i/Zul_a -> 0.7619047619
B15: q | D15: =D_i/D_a -> 0.5
B16: df | D16: =D_a*INDEX(Mittelwert,COUNTA(Mittelwert)) -> 154.3110298 | E16: mm | F16: opt. Fugendurchmesser
B18: gewählt df | D18: 150 | E18: mm | F18: Fugendurchmesser
B19: qa | D19: =D_f/D_a -> 0.75
B20: p0 | D20: =(1-q_a^2)/SQRT(3+q_a^4)*Zul_a -> 151.3508082 | E20: N/mm² | F20: vorh. Fugenpressung
B21: Fa | D21: =D_f*PI()*Lng*p_0*Haft/1000 -> 5349.179105 | E21: kN | F21: übertragbare Axialkraft
B22: Md | D22: =D_f^2*PI()/2*Lng*p_0*Haft/1000000 -> 401.1884329 | E22: kNm | F22: übertragbares Drehmoment

Sheet Iteration
A1: q0 | B1: q1 | C1: q2 | D1: f
A2: =D_i/D_a -> 0.5 | B2: =1 -> 1 | C2: =(A2+B2)/2 -> 0.75 | D2: =(1-C2*C2)/SQRT(3+C2^4)-q_Zul/2*(1-(q_D/C2)^2) -> 0.02859916643
A3: =IF(D2>=0,C2,A2) -> 0.75 | B3: =IF(D2<0,C2,B2) -> 1 | C3: =(A3+B3)/2 -> 0.875 | D3: =(1-C3*C3)/SQRT(3+C3^4)-q_Zul/2*(1-(q_D/C3)^2) -> -0.1327955369
A4: =IF(D3>=0,C3,A3) -> 0.75 | B4: =IF(D3<0,C3,B3) -> 0.875 | C4: =(A4+B4)/2 -> 0.8125 | D4: =(1-C4*C4)/SQRT(3+C4^4)-q_Zul/2*(1-(q_D/C4)^2) -> -0.0533431289
A5: 0.75 | B5: 0.8125 | C5: 0.78125 | D5: =(1-C5*C5)/SQRT(3+C5^4)-q_Zul/2*(1-(q_D/C5)^2) -> -0.01273885585
A6: 0.75 | B6: 0.78125 | C6: 0.765625 | D6: =(1-C6*C6)/SQRT(3+C6^4)-q_Zul/2*(1-(q_D/C6)^2) -> 0.007828704803
A7: 0.765625 | B7: 0.78125 | C7: 0.7734375 | D7: =(1-C7*C7)/SQRT(3+C7^4)-q_Zul/2*(1-(q_D/C7)^2) -> -0.002479079424
A8: 0.765625 | B8: 0.7734375 | C8: 0.76953125 | D8: =(1-C8*C8)/SQRT(3+C8^4)-q_Zul/2*(1-(q_D/C8)^2) -> 0.002668651311
A9: 0.76953125 | B9: 0.7734375 | C9: 0.771484375 | D9: =(1-C9*C9)/SQRT(3+C9^4)-q_Zul/2*(1-(q_D/C9)^2) -> 9.326622105e-05
A10: 0.771484375 | B10: 0.7734375 | C10: 0.7724609375 | D10: =(1-C10*C10)/SQRT(3+C10^4)-q_Zul/2*(1-(q_D/C10)^2) -> -0.001193284005
A11: 0.771484375 | B11: 0.7724609375 | C11: 0.7719726562 | D11: =(1-C11*C11)/SQRT(3+C11^4)-q_Zul/2*(1-(q_D/C11)^2) -> -0.0005501035566
A12: 0.771484375 | B12: 0.7719726562 | C12: 0.7717285156 | D12: =(1-C12*C12)/SQRT(3+C12^4)-q_Zul/2*(1-(q_D/C12)^2) -> -0.0002284423733
A13: 0.771484375 | B13: 0.7717285156 | C13: 0.7716064453 | D13: =(1-C13*C13)/SQRT(3+C13^4)-q_Zul/2*(1-(q_D/C13)^2) -> -6.759400744e-05
A14: 0.771484375 | B14: 0.7716064453 | C14: 0.7715454102 | D14: =(1-C14*C14)/SQRT(3+C14^4)-q_Zul/2*(1-(q_D/C14)^2) -> 1.283462336e-05
A15: 0.7715454102 | B15: 0.7716064453 | C15: 0.7715759277 | D15: =(1-C15*C15)/SQRT(3+C15^4)-q_Zul/2*(1-(q_D/C15)^2) -> -2.738006282e-05
A16: 0.7715454102 | B16: 0.7715759277 | C16: 0.7715606689 | D16: =(1-C16*C16)/SQRT(3+C16^4)-q_Zul/2*(1-(q_D/C16)^2) -> -7.272812438e-06
A17: 0.7715454102 | B17: 0.7715606689 | C17: 0.7715530396 | D17: =(1-C17*C17)/SQRT(3+C17^4)-q_Zul/2*(1-(q_D/C17)^2) -> 2.780882283e-06
A18: 0.7715530396 | B18: 0.7715606689 | C18: 0.7715568542 | D18: =(1-C18*C18)/SQRT(3+C18^4)-q_Zul/2*(1-(q_D/C18)^2) -> -2.245970872e-06
A19: 0.7715530396 | B19: 0.7715568542 | C19: 0.7715549469 | D19: =(1-C19*C19)/SQRT(3+C19^4)-q_Zul/2*(1-(q_D/C19)^2) -> 2.674542569e-07
A20: 0.7715549469 | B20: 0.7715568542 | C20: 0.7715559006 | D20: =(1-C20*C20)/SQRT(3+C20^4)-q_Zul/2*(1-(q_D/C20)^2) -> -9.892586697e-07
A21: 0.7715549469 | B21: 0.7715559006 | C21: 0.7715554237 | D21: =(1-C21*C21)/SQRT(3+C21^4)-q_Zul/2*(1-(q_D/C21)^2) -> -3.60902297e-07
A22: 0.7715549469 | B22: 0.7715554237 | C22: 0.7715551853 | D22: =(1-C22*C22)/SQRT(3+C22^4)-q_Zul/2*(1-(q_D/C22)^2) -> -4.672404261e-08
A23: 0.7715549469 | B23: 0.7715551853 | C23: 0.7715550661 | D23: =(1-C23*C23)/SQRT(3+C23^4)-q_Zul/2*(1-(q_D/C23)^2) -> 1.103651014e-07
A24: 0.7715550661 | B24: 0.7715551853 | C24: 0.7715551257 | D24: =(1-C24*C24)/SQRT(3+C24^4)-q_Zul/2*(1-(q_D/C24)^2) -> 3.182052793e-08
A25: 0.7715551257 | B25: 0.7715551853 | C25: 0.7715551555 | D25: =(1-C25*C25)/SQRT(3+C25^4)-q_Zul/2*(1-(q_D/C25)^2) -> -7.451757655e-09
A26: 0.7715551257 | B26: 0.7715551555 | C26: 0.7715551406 | D26: =(1-C26*C26)/SQRT(3+C26^4)-q_Zul/2*(1-(q_D/C26)^2) -> 1.218438506e-08
A27: 0.7715551406 | B27: 0.7715551555 | C27: 0.7715551481 | D27: =(1-C27*C27)/SQRT(3+C27^4)-q_Zul/2*(1-(q_D/C27)^2) -> 2.366313673e-09
A28: 0.7715551481 | B28: 0.7715551555 | C28: 0.7715551518 | D28: =(1-C28*C28)/SQRT(3+C28^4)-q_Zul/2*(1-(q_D/C28)^2) -> -2.542721977e-09
A29: 0.7715551481 | B29: 0.7715551518 | C29: 0.7715551499 | D29: =(1-C29*C29)/SQRT(3+C29^4)-q_Zul/2*(1-(q_D/C29)^2) -> -8.820416619e-11
A30: 0.7715551481 | B30: 0.7715551499 | C30: 0.771555149 | D30: =(1-C30*C30)/SQRT(3+C30^4)-q_Zul/2*(1-(q_D/C30)^2) -> 1.139054739e-09
